fUST/lending_fUST_20250628
["ID","MTS","AMOUNT","RATE_DAILY","PERIOD"]
[368319241,1751116243298,-4912.08822553,0.00020107,2]
[368319242,1751116243311,-322.755667,0.00020187,2]
[368319243,1751116243320,-500.0,0.00020254,2]
[368319244,1751116243330,-500.0,0.00020254,2]
[368319245,1751116243339,-207.4,0.00020254,2]
[368319246,1751116243351,-500.0,0.00020254,2]
[368319247,1751116243361,-5000.0,0.00020254,2]
[368319248,1751116243371,-500.0,0.00020254,2]
[368319249,1751116243382,-500.0,0.00020254,2]
[368319250,1751116243392,-500.0,0.00020254,2]
[368319251,1751116243401,-500.0,0.00020254,2]
[368319252,1751116243411,-500.0,0.00020254,2]
[368319253,1751116243420,-500.0,0.00020254,2]
[368319254,1751116243429,-500.0,0.00020254,2]
[368319255,1751116243439,-500.0,0.00020254,2]
[368319256,1751116243560,-500.0,0.00020254,2]
[368319257,1751116243570,-500.0,0.00020254,2]
[368319258,1751116243579,-500.0,0.00020254,2]
[368319259,1751116243589,-500.0,0.00020254,2]
[368319260,1751116243599,-500.0,0.00020254,2]
[368319261,1751116243608,-500.0,0.00020254,2]
[368319262,1751116243619,-500.0,0.00020254,2]
[368319263,1751116243630,-151.0,0.00020273,2]
[368319264,1751116243639,-151.0,0.00020273,2]
[368319265,1751116243648,-151.0,0.00020273,2]
[368319266,1751116243658,-151.0,0.00020273,2]
[368319267,1751116243668,-151.0,0.00020273,2]
[368319268,1751116243679,-151.0,0.00020273,2]
[368319269,1751116243689,-460.0,0.00020273,2]
[368319270,1751116243701,-170.268369,0.00020273,2]
[368319271,1751116243712,-170.268369,0.00020273,2]
[368319272,1751116243721,-460.0,0.00020273,2]
[368319273,1751116243732,-460.0,0.00020273,2]
[368319274,1751116243742,-460.0,0.00020273,2]
[368319275,1751116243751,-460.0,0.00020273,2]
[368319276,1751116243762,-460.0,0.00020273,2]
[368319277,1751116243771,-461.84,0.00020273,2]
[368319278,1751116243781,-460.0,0.00020273,2]
[368319279,1751116243790,-460.0,0.00020273,2]
[368319280,1751116243800,-674.35,0.00020273,2]
[368319281,1751116243810,-460.0,0.00020273,2]
[368319282,1751116243820,-460.0,0.00020273,2]
[368319283,1751116243830,-460.0,0.00020273,2]
[368319284,1751116243840,-479.83,0.00020273,2]
[368319285,1751116243851,-460.0,0.00020273,2]
[368319286,1751116243860,-460.0,0.00020273,2]
[368319287,1751116243869,-683.15,0.00020273,2]
[368319288,1751116243879,-460.0,0.00020273,2]
[368319289,1751116243888,-1159.91,0.00020273,2]
[368319290,1751116243897,-1346.31,0.00020273,2]
[368319291,1751116243906,-460.0,0.00020273,2]
[368319292,1751116243916,-460.0,0.00020273,2]
[368319293,1751116243926,-478.54,0.00020273,2]
[368319294,1751116243936,-460.0,0.00020273,2]
[368319295,1751116243946,-460.0,0.00020273,2]
[368319296,1751116243955,-1675.23,0.00020273,2]
[368319297,1751116243964,-693.44,0.00020273,2]
[368319298,1751116243974,-460.0,0.00020273,2]
[368319299,1751116243983,-555.4,0.00020273,2]
[368319300,1751116243992,-460.0,0.00020273,2]
[368319301,1751116244001,-460.0,0.00020273,2]
[368319302,1751116244011,-493.6,0.00020273,2]
[368319303,1751116244020,-460.0,0.00020273,2]
[368319304,1751116244029,-460.0,0.00020273,2]
[368319305,1751116244038,-1332.8,0.00020273,2]
[368319306,1751116244047,-1666.07,0.00020273,2]
[368319307,1751116244056,-1182.86,0.00020273,2]
[368319308,1751116244066,-460.0,0.00020273,2]
[368319309,1751116244075,-460.0,0.00020273,2]
[368319310,1751116244084,-532.8,0.00020273,2]
[368319311,1751116244097,-2682.43,0.00020273,2]
[368319312,1751116244107,-460.0,0.00020273,2]
[368319313,1751116244115,-460.0,0.00020273,2]
[368319314,1751116244125,-1499.51,0.00020273,2]
[368319315,1751116244135,-460.0,0.00020273,2]
[368319316,1751116244144,-939.39,0.00020273,2]
[368319317,1751116244154,-2236.67,0.00020273,2]
[368319318,1751116244163,-460.0,0.00020273,2]
[368319319,1751116244172,-460.0,0.00020273,2]
[368319320,1751116244182,-1014.63,0.00020273,2]
[368319321,1751116244191,-460.0,0.00020273,2]
[368319322,1751116244201,-460.0,0.00020273,2]
[368319323,1751116244210,-460.0,0.00020273,2]
[368319324,1751116244219,-1088.57,0.00020273,2]
[368319325,1751116244228,-460.0,0.00020273,2]
[368319326,1751116244237,-1075.14,0.00020273,2]
[368319327,1751116244247,-636.01,0.00020273,2]
[368319328,1751116244256,-1027.87,0.00020273,2]
[368319329,1751116244266,-207.22,0.00020273,2]
[368319330,1751116244275,-2468.25,0.00020273,2]
[368319331,1751116244285,-460.0,0.00020273,2]
[368319332,1751116244294,-460.0,0.00020273,2]
[368319333,1751116244303,-1301.77,0.00020273,2]
[368319334,1751116244312,-4912.08822553,0.00020314,3]
[368319335,1751116244322,-192.0,0.00020436,2]
[368319336,1751116244332,-500.0,0.0002048,2]
[368319337,1751116244341,-4912.08822553,0.00020521,3]
[368319338,1751116244350,-460.0,0.00020547,2]
[368319339,1751116244360,-460.0,0.00020547,2]
[368319340,1751116244369,-460.0,0.00020547,2]
[368319341,1751116244378,-460.0,0.00020547,2]
[368319342,1751116244387,-460.0,0.00020547,2]
[368319343,1751116244396,-460.0,0.00020547,2]
[368319344,1751116244405,-461.84,0.00020547,2]
[368319345,1751116244415,-424.58015984,0.00020547,2]
[368319346,1751116244424,-460.0,0.00020547,2]
[368319347,1751116244434,-674.35,0.00020547,2]
[368319348,1751116244443,-460.0,0.00020547,2]
[368319349,1751116244454,-191.43,0.00020547,2]
[368319350,1751116244463,-460.0,0.00020547,2]
[368319351,1751116244472,-460.0,0.00020547,2]
[368319352,1751116244481,-460.0,0.00020547,2]
[368319353,1751116244491,-683.15,0.00020547,2]
[368319354,1751116244500,-460.0,0.00020547,2]
[368319355,1751116244510,-1159.91,0.00020547,2]
[368319356,1751116244519,-1346.31,0.00020547,2]
[368319357,1751116244529,-460.0,0.00020547,2]
[368319358,1751116244538,-478.54,0.00020547,2]
[368319359,1751116244547,-460.0,0.00020547,2]
[368319360,1751116244556,-460.0,0.00020547,2]
[368319361,1751116244565,-1675.23,0.00020547,2]
[368319362,1751116244574,-693.44,0.00020547,2]
[368319363,1751116244583,-460.0,0.00020547,2]
[368319364,1751116244592,-555.4,0.00020547,2]
[368319365,1751116244601,-272.6,0.00020547,2]
[368319366,1751116244610,-460.0,0.00020547,2]
[368319367,1751116244620,-493.6,0.00020547,2]
[368319368,1751116244629,-460.0,0.00020547,2]
[368319369,1751116244638,-460.0,0.00020547,2]
[368319370,1751116244648,-1332.8,0.00020547,2]
[368319371,1751116244657,-1666.07,0.00020547,2]
[368319372,1751116244671,-1182.86,0.00020547,2]
[368319373,1751116244680,-460.0,0.00020547,2]
[368319374,1751116244690,-460.0,0.00020547,2]
[368319375,1751116244699,-532.8,0.00020547,2]
[368319376,1751116244708,-2682.43,0.00020547,2]
[368319377,1751116244718,-460.0,0.00020547,2]
[368319378,1751116244727,-460.0,0.00020547,2]
[368319379,1751116244737,-1499.51,0.00020547,2]
[368319380,1751116244748,-460.0,0.00020547,2]
[368319381,1751116244758,-939.39,0.00020547,2]
[368319382,1751116244768,-2236.67,0.00020547,2]
[368319383,1751116244778,-460.0,0.00020547,2]
[368319384,1751116244790,-460.0,0.00020547,2]
[368319385,1751116244800,-1014.63,0.00020547,2]
[368319386,1751116244810,-460.0,0.00020547,2]
[368319387,1751116244819,-460.0,0.00020547,2]
[368319388,1751116244828,-460.0,0.00020547,2]
[368319389,1751116244838,-1088.57,0.00020547,2]
[368319390,1751116244848,-460.0,0.00020547,2]
[368319391,1751116244857,-1075.14,0.00020547,2]
[368319392,1751116244867,-636.01,0.00020547,2]
[368319393,1751116244876,-1027.87,0.00020547,2]
[368319394,1751116244886,-2468.25,0.00020547,2]
[368319395,1751116244896,-460.0,0.00020547,2]
[368319396,1751116244905,-460.0,0.00020547,2]
[368319397,1751116244914,-1301.77,0.00020547,2]
[368319398,1751116244924,-2729.88,0.000206,2]
[368319399,1751116244935,-589.37666763,0.00020626,2]
[368319400,1751116244946,-290.578,0.00020687,2]
[368319401,1751116244958,-847.18566335,0.00020728,3]
[368319402,1751116244968,-160.0,0.00020728,3]
[368319403,1751116244979,-4912.08822553,0.00020728,3]
[368319404,1751116244988,-213.78848551,0.00020728,3]
[368319405,1751116244998,-12564.78152626,0.00020728,3]
[368319406,1751116245007,-192.0,0.00020751,2]
[368319407,1751116245018,-151.0,0.00020755,2]
[368319408,1751116245030,-151.0,0.00020755,2]
[368319409,1751116245039,-151.0,0.00020755,2]
[368319410,1751116245048,-151.0,0.00020755,2]
[368319411,1751116245057,-170.268369,0.00020755,2]
[368319412,1751116245066,-170.268369,0.00020755,2]
[368319413,1751116245076,-192.0,0.00020779,2]
[368319414,1751116245086,-5000.0,0.00020802,2]
[368319415,1751116245097,-420.0,0.00020815,2]
[368319416,1751116245105,-192.0,0.0002082,2]
[368319417,1751116245115,-151.0,0.00020821,2]
[368319418,1751116245123,-189.55028,0.00020821,2]
[368319419,1751116245132,-460.0,0.00020821,2]
[368319420,1751116245141,-460.0,0.00020821,2]
[368319421,1751116245151,-460.0,0.00020821,2]
[368319422,1751116245160,-460.0,0.00020821,2]
[368319423,1751116245169,-460.0,0.00020821,2]
[368319424,1751116245178,-378.94,0.00020821,2]
[368319425,1751116245188,-461.84,0.00020821,2]
[368319426,1751116245197,-460.0,0.00020821,2]
[368319427,1751116245207,-674.35,0.00020821,2]
[368319428,1751116245216,-438.28632599,0.00020821,2]
[368319429,1751116245226,-460.0,0.00020821,2]
[368319430,1751116245235,-460.0,0.00020821,2]
[368319431,1751116245245,-460.0,0.00020821,2]
[368319432,1751116245254,-683.15,0.00020821,2]
[368319433,1751116245263,-460.0,0.00020821,2]
[368319434,1751116245272,-1159.91,0.00020821,2]
[368319435,1751116245281,-1346.31,0.00020821,2]
[368319436,1751116245291,-303.02425727,0.00020821,2]
[368319437,1751116245300,-478.54,0.00020821,2]
[368319438,1751116245309,-460.0,0.00020821,2]
[368319439,1751116245318,-460.0,0.00020821,2]
[368319440,1751116245328,-1675.23,0.00020821,2]
[368319441,1751116245337,-693.44,0.00020821,2]
[368319442,1751116245346,-460.0,0.00020821,2]
[368319443,1751116245356,-555.4,0.00020821,2]
[368319444,1751116245365,-460.0,0.00020821,2]
[368319445,1751116245375,-493.6,0.00020821,2]
[368319446,1751116245384,-460.0,0.00020821,2]
[368319447,1751116245393,-460.0,0.00020821,2]
[368319448,1751116245403,-1332.8,0.00020821,2]
[368319449,1751116245412,-1666.07,0.00020821,2]
[368319450,1751116245421,-1182.86,0.00020821,2]
[368319451,1751116245430,-460.0,0.00020821,2]
[368319452,1751116245439,-460.0,0.00020821,2]
[368319453,1751116245448,-532.8,0.00020821,2]
[368319454,1751116245457,-2682.43,0.00020821,2]
[368319455,1751116245467,-460.0,0.00020821,2]
[368319456,1751116245475,-460.0,0.00020821,2]
[368319457,1751116245484,-1499.51,0.00020821,2]
[368319458,1751116245494,-460.0,0.00020821,2]
[368319459,1751116245503,-939.39,0.00020821,2]
[368319460,1751116245512,-2236.67,0.00020821,2]
[368319461,1751116245522,-460.0,0.00020821,2]
[368319462,1751116245531,-460.0,0.00020821,2]
[368319463,1751116245540,-1014.63,0.00020821,2]
[368319464,1751116245549,-460.0,0.00020821,2]
[368319465,1751116245559,-460.0,0.00020821,2]
[368319466,1751116245568,-460.0,0.00020821,2]
[368319467,1751116245577,-1088.57,0.00020821,2]
[368319468,1751116245586,-460.0,0.00020821,2]
[368319469,1751116245595,-1075.14,0.00020821,2]
[368319470,1751116245604,-636.01,0.00020821,2]
[368319471,1751116245613,-1027.87,0.00020821,2]
[368319472,1751116245623,-2468.25,0.00020821,2]
[368319473,1751116245631,-460.0,0.00020821,2]
[368319474,1751116245641,-151.0,0.00020821,2]
[368319476,1751116245650,-460.0,0.00020821,2]
[368319478,1751116245659,-1301.77,0.00020821,2]
[368319479,1751116245669,-612.0,0.00020912,2]
[368319481,1751116245678,-1180.0,0.00020917,2]
[368319483,1751116245688,-4912.08822553,0.00020934,4]
[368319485,1751116245698,-612.0,0.00021089,2]
[368319486,1751116245707,-460.0,0.00021095,2]
[368319488,1751116245717,-460.0,0.00021095,2]
[368319490,1751116245726,-460.0,0.00021095,2]
[368319492,1751116245735,-460.0,0.00021095,2]
[368319493,1751116245745,-460.0,0.00021095,2]
[368319494,1751116245754,-461.84,0.00021095,2]
[368319496,1751116245763,-460.0,0.00021095,2]
[368319498,1751116245773,-674.35,0.00021095,2]
[368319500,1751116245783,-460.0,0.00021095,2]
[368319502,1751116245792,-460.0,0.00021095,2]
[368319503,1751116245800,-460.0,0.00021095,2]
[368319504,1751116245809,-683.15,0.00021095,2]
[368319506,1751116245819,-460.0,0.00021095,2]
[368319507,1751116245828,-1159.91,0.00021095,2]
[368319508,1751116245837,-1346.31,0.00021095,2]
[368319509,1751116245846,-478.54,0.00021095,2]
[368319510,1751116245855,-460.0,0.00021095,2]
[368319511,1751116245864,-460.0,0.00021095,2]
[368319512,1751116245874,-1675.23,0.00021095,2]
[368319513,1751116245885,-693.44,0.00021095,2]
[368319514,1751116245894,-460.0,0.00021095,2]
[368319515,1751116245903,-555.4,0.00021095,2]
[368319516,1751116245913,-460.0,0.00021095,2]
[368319517,1751116245922,-460.0,0.00021095,2]
[368319518,1751116245932,-493.6,0.00021095,2]
[368319519,1751116245942,-460.0,0.00021095,2]
[368319520,1751116245952,-1332.8,0.00021095,2]
[368319521,1751116245961,-1666.07,0.00021095,2]
[368319522,1751116245971,-1182.86,0.00021095,2]
[368319523,1751116245980,-460.0,0.00021095,2]
[368319524,1751116245989,-460.0,0.00021095,2]
[368319525,1751116245999,-532.8,0.00021095,2]
[368319526,1751116246009,-2682.43,0.00021095,2]
[368319527,1751116246018,-460.0,0.00021095,2]
[368319528,1751116246028,-460.0,0.00021095,2]
[368319529,1751116246037,-1499.51,0.00021095,2]
[368319530,1751116246046,-460.0,0.00021095,2]
[368319531,1751116246056,-939.39,0.00021095,2]
[368319532,1751116246065,-460.0,0.00021095,2]
[368319533,1751116246176,-460.0,0.00021095,2]
[368319534,1751116246186,-2236.67,0.00021095,2]
[368319535,1751116246196,-1014.63,0.00021095,2]
[368319536,1751116246206,-460.0,0.00021095,2]
[368319537,1751116246215,-520.85,0.00021095,2]
[368319538,1751116246224,-460.0,0.00021095,2]
[368319539,1751116246234,-1088.57,0.00021095,2]
[368319540,1751116246243,-460.0,0.00021095,2]
[368319541,1751116246252,-1075.14,0.00021095,2]
[368319542,1751116246261,-636.01,0.00021095,2]
[368319543,1751116246271,-1027.87,0.00021095,2]
[368319544,1751116246280,-2468.25,0.00021095,2]
[368319545,1751116246289,-460.0,0.00021095,2]
[368319546,1751116246298,-460.0,0.00021095,2]
[368319547,1751116246307,-1301.77,0.00021095,2]
[368319548,1751116246316,-4912.08822553,0.00021141,4]
[368319549,1751116246325,-395.930989,0.0002121,4]
[368319550,1751116246335,-589.37666763,0.00021262,2]
[368319551,1751116246344,-151.0,0.00021303,2]
[368319552,1751116246354,-151.0,0.00021303,2]
[368319553,1751116246364,-151.0,0.00021303,2]
[368319554,1751116246373,-151.0,0.00021303,2]
[368319555,1751116246382,-170.268369,0.00021303,2]
[368319556,1751116246391,-170.268369,0.00021303,2]
[368319557,1751116246400,-192.0,0.0002131,2]
[368319558,1751116246409,-4912.08822553,0.00021348,5]
[368319559,1751116246418,-612.0,0.00021361,2]
[368319560,1751116246428,-151.0,0.00021369,2]
[368319561,1751116246437,-460.0,0.00021369,2]
[368319562,1751116246446,-460.0,0.00021369,2]
[368319563,1751116246455,-460.0,0.00021369,2]
[368319564,1751116246464,-460.0,0.00021369,2]
[368319565,1751116246474,-460.0,0.00021369,2]
[368319566,1751116246483,-461.84,0.00021369,2]
[368319567,1751116246493,-460.0,0.00021369,2]
[368319568,1751116246502,-151.0,0.00021369,2]
[368319569,1751116246512,-674.35,0.00021369,2]
[368319570,1751116246524,-460.0,0.00021369,2]
[368319571,1751116246534,-460.0,0.00021369,2]
[368319572,1751116246544,-683.15,0.00021369,2]
[368319573,1751116246554,-460.0,0.00021369,2]
[368319574,1751116246564,-151.0,0.00021369,2]
[368319575,1751116246573,-151.0,0.00021369,2]
[368319576,1751116246582,-460.0,0.00021369,2]
[368319577,1751116246592,-1159.91,0.00021369,2]
[368319578,1751116246601,-1346.31,0.00021369,2]
[368319579,1751116246611,-478.54,0.00021369,2]
[368319580,1751116246620,-460.0,0.00021369,2]
[368319581,1751116246629,-460.0,0.00021369,2]
[368319582,1751116246639,-1675.23,0.00021369,2]
[368319583,1751116246648,-693.44,0.00021369,2]
[368319584,1751116246658,-460.0,0.00021369,2]
[368319585,1751116246666,-555.4,0.00021369,2]
[368319586,1751116246675,-460.0,0.00021369,2]
[368319587,1751116246685,-460.0,0.00021369,2]
[368319588,1751116246694,-493.6,0.00021369,2]
[368319589,1751116246703,-460.0,0.00021369,2]
[368319590,1751116246713,-1332.8,0.00021369,2]
[368319591,1751116246723,-1666.07,0.00021369,2]
[368319592,1751116246732,-1182.86,0.00021369,2]
[368319593,1751116246742,-460.0,0.00021369,2]
[368319594,1751116246751,-460.0,0.00021369,2]
[368319595,1751116246760,-532.8,0.00021369,2]
[368319596,1751116246770,-2682.43,0.00021369,2]
[368319597,1751116246779,-460.0,0.00021369,2]
[368319598,1751116246789,-460.0,0.00021369,2]
[368319599,1751116246800,-1499.51,0.00021369,2]
[368319600,1751116246809,-460.0,0.00021369,2]
[368319601,1751116246819,-939.39,0.00021369,2]
[368319602,1751116246828,-460.0,0.00021369,2]
[368319603,1751116246838,-460.0,0.00021369,2]
[368319604,1751116246847,-2236.67,0.00021369,2]
[368319605,1751116246857,-1014.63,0.00021369,2]
[368319606,1751116246866,-460.0,0.00021369,2]
[368319607,1751116246876,-460.0,0.00021369,2]
[368319608,1751116246886,-1088.57,0.00021369,2]
[368319609,1751116246896,-460.0,0.00021369,2]
[368319610,1751116246906,-1075.14,0.00021369,2]
[368319611,1751116246915,-636.01,0.00021369,2]
[368319612,1751116246924,-1027.87,0.00021369,2]
[368319613,1751116246934,-2468.25,0.00021369,2]
[368319614,1751116246944,-460.0,0.00021369,2]
[368319615,1751116246954,-460.0,0.00021369,2]
[368319616,1751116246963,-1301.77,0.00021369,2]
[368319617,1751116246972,-153.0,0.0002137,2]
[368319618,1751116246982,-153.0,0.0002137,2]
[368319619,1751116246992,-153.0,0.0002137,2]
[368319620,1751116247002,-155.18730198,0.00021534,2]
[368319621,1751116247011,-4683.36512354,0.00021554,2]
[368319622,1751116247152,-406.0,0.0002142,2]
[368319623,1751116247162,-11878.56655646,0.00021554,2]
[368319624,1751116247172,-4912.08822553,0.00021555,5]
[368319625,1751116247182,-500.0,0.00021558,2]
[368319626,1751116247192,-154.180814,0.00021567,2]
[368319627,1751116247202,-151.0,0.00021567,2]
[368319628,1751116247211,-151.0,0.00021567,2]
[368319629,1751116247221,-151.0,0.00021567,2]
[368319630,1751116247230,-151.0,0.00021567,2]
[368319631,1751116247239,-170.268369,0.00021567,2]
[368319632,1751116247249,-170.268369,0.00021567,2]
[368319633,1751116247259,-200.0,0.0002157,2]
[368319634,1751116247268,-612.0,0.00021605,2]
[368319635,1751116247277,-215.0738,0.00021623,2]
[368319636,1751116247286,-151.0,0.00021624,5]
[368319637,1751116247297,-460.0,0.00021643,2]
[368319638,1751116247307,-460.0,0.00021643,2]
[368319639,1751116247318,-460.0,0.00021643,2]
[368319640,1751116247328,-460.0,0.00021643,2]
[368319641,1751116247338,-460.0,0.00021643,2]
[368319642,1751116247347,-461.84,0.00021643,2]
[368319643,1751116247357,-460.0,0.00021643,2]
[368319644,1751116247367,-674.35,0.00021643,2]
[368319645,1751116247378,-460.0,0.00021643,2]
[368319646,1751116247387,-460.0,0.00021643,2]
[368319647,1751116247396,-683.15,0.00021643,2]
[368319648,1751116247407,-460.0,0.00021643,2]
[368319649,1751116247416,-460.0,0.00021643,2]
[368319650,1751116247426,-1159.91,0.00021643,2]
[368319651,1751116247439,-1346.31,0.00021643,2]
[368319652,1751116247448,-478.54,0.00021643,2]
[368319653,1751116247457,-460.0,0.00021643,2]
[368319654,1751116247466,-460.0,0.00021643,2]
[368319655,1751116247476,-1675.23,0.00021643,2]
[368319656,1751116247486,-693.44,0.00021643,2]
[368319657,1751116247497,-460.0,0.00021643,2]
[368319658,1751116247507,-555.4,0.00021643,2]
[368319659,1751116247517,-460.0,0.00021643,2]
[368319660,1751116247526,-460.0,0.00021643,2]
[368319661,1751116247535,-493.6,0.00021643,2]
[368319662,1751116247545,-460.0,0.00021643,2]
[368319663,1751116247555,-1332.8,0.00021643,2]
[368319664,1751116247564,-1666.07,0.00021643,2]
[368319665,1751116247573,-341.92193547,0.00021643,2]
[368319666,1751116247586,-840.93806453,0.00021643,2]
[368319667,1751116247595,-460.0,0.00021643,2]
[368319668,1751116247604,-460.0,0.00021643,2]
[368319669,1751116247613,-532.8,0.00021643,2]
[368319670,1751116247622,-1545.29588786,0.00021643,2]
[368319671,1751116247633,-1137.13411214,0.00021643,2]
[368319672,1751116247643,-460.0,0.00021643,2]
[368319673,1751116247652,-460.0,0.00021643,2]
[368319674,1751116247662,-1499.51,0.00021643,2]
[368319675,1751116247671,-460.0,0.00021643,2]
[368319676,1751116247680,-939.39,0.00021643,2]
[368319677,1751116247689,-460.0,0.00021643,2]
[368319678,1751116247699,-460.0,0.00021643,2]
[368319679,1751116247708,-2236.67,0.00021643,2]
[368319680,1751116247717,-153.3439919,0.00021643,2]
[368319681,1751116247728,-861.2860081,0.00021643,2]
[368319682,1751116247738,-460.0,0.00021643,2]
[368319683,1751116247747,-460.0,0.00021643,2]
[368319684,1751116247756,-291.87600216,0.00021643,2]
[368319685,1751116247768,-540.44922407,0.00021643,2]
[368319686,1751116247883,-460.0,0.00019178,2]
[368319687,1751116247893,-291.04,0.00019452,2]
[368319688,1751116247902,-421.306,0.0002142,2]
[368319689,1751116247911,-256.24477377,0.00021643,2]
[368319690,1751116247921,-460.0,0.00021643,2]
[368319691,1751116247931,-1075.14,0.00021643,2]
[368319692,1751116247940,-636.01,0.00021643,2]
[368319693,1751116247949,-1027.87,0.00021643,2]
[368319694,1751116247959,-2468.25,0.00021643,2]
[368319695,1751116247968,-460.0,0.00021643,2]
[368319696,1751116247978,-460.0,0.00021643,2]
[368319697,1751116247988,-1301.77,0.00021643,2]
[368319698,1751116247997,-192.0,0.00021688,2]
[368319699,1751116248006,-500.0,0.00021696,2]
[368319700,1751116248015,-151.78274416,0.00021696,2]
[368319701,1751116248025,-500.0,0.00021696,2]
[368319702,1751116248034,-500.0,0.00021696,2]
[368319703,1751116248044,-600.0,0.00021696,2]
[368319704,1751116248053,-501.84687181,0.00021696,2]
[368319705,1751116248062,-500.0,0.00021696,2]
[368319706,1751116248072,-150.0,0.00021715,2]
[368319707,1751116248081,-150.0,0.00021715,2]
[368319708,1751116248094,-500.0,0.00021743,2]
[368319709,1751116248104,-500.0,0.00021743,2]
[368319710,1751116248113,-500.0,0.00021743,2]
[368319711,1751116248123,-500.0,0.00021743,2]
[368319712,1751116248133,-4176.94449379,0.00021762,5]
[368319713,1751116248202,-460.0,0.00019178,2]
[368319714,1751116248211,-3449.85,0.00020811,10]
[368319715,1751116248222,-735.14373174,0.00021762,5]
[368319716,1751116248231,-966.0,0.00021769,2]
[368319717,1751116248240,-2161.0,0.00021769,2]
[368319718,1751116248250,-654.0,0.00021769,2]
[368319719,1751116248261,-412.0,0.00021785,2]
[368319720,1751116248271,-151.0,0.00021786,5]
[368319721,1751116248280,-151.0,0.000218,2]
[368319722,1751116248290,-151.0,0.000218,2]
[368319723,1751116248300,-154.712361,0.000218,2]
[368319724,1751116248310,-154.712361,0.000218,2]
[368319725,1751116248320,-882.58154626,0.000218,2]
[368319726,1751116248332,-1735.0991368,0.000218,2]
[368319727,1751116248859,-382.31931694,0.000218,2]
[368319728,1751116248869,-155.18730198,0.00021808,2]
[368319729,1751116248879,-287.94320314,0.0002181,2]
[368319730,1751116248902,-2712.05679686,0.0002181,2]
[368319731,1751116248911,-151.0,0.00021817,2]
[368319732,1751116248921,-151.0,0.00021817,2]
[368319733,1751116248931,-159.23209514,0.00021817,2]
[368319734,1751116248943,-249.95164586,0.00021817,2]
[368319735,1751116248952,-409.183741,0.00021817,2]
[368319736,1751116248962,-672.291573,0.00021817,2]
[368319737,1751116248971,-672.291573,0.00021817,2]
[368319738,1751116248981,-151.0,0.00021817,2]
[368319739,1751116248990,-221.02644,0.00021817,2]
[368319740,1751116248999,-151.0,0.00021817,2]
[368319741,1751116249009,-151.0,0.00021817,2]
[368319742,1751116249018,-1764.119536,0.00021817,2]
[368319743,1751116249028,-1764.119536,0.00021817,2]
[368319744,1751116249038,-3000.0,0.0002182,2]
[368319745,1751116249047,-3000.0,0.0002183,2]
[368319746,1751116249057,-1585.3482946,0.0002184,2]
[368319747,1751116481393,151.55924971,0.000218,30]
[368319748,1751116822176,-160.0,0.00018519,2]
[368319749,1751116822198,-170.83057366,0.0001852,2]
[368319750,1751116824807,-324.6703462,0.0001852,2]
[368319751,1751116977123,334.249721,0.00013699,2]
[368319753,1751117083014,253.0,0.0002524,120]
[368319755,1751117221275,437.0,0.00025249,120]